bitfinex/quotes_ETHUSD_20250314
["timestamp","ask_amount","ask_price","bid_price","bid_amount"]
[1741923017488,3.0,1890.8,1890.3,0.0537072]
[1741923017652,3.0,1890.8,1890.5,0.7735]
[1741923017963,8.28886,1890.8,1890.6,0.05421313]
[1741923018270,9.18299983,1890.8,1890.6,0.05421313]
[1741923018465,5.28904,1890.7,1890.6,0.05421313]
[1741923018873,5.28932,1890.6,1890.4,1.06395163]
[1741923019666,5.28932,1890.6,1890.3,0.8329]
[1741923020041,5.53532,1890.6,1890.3,1.91619974]
[1741923020441,5.28932,1890.6,1890.3,1.91619974]
[1741923021443,6.29930523,1890.6,1890.3,1.08329974]
[1741923021661,6.29930523,1890.6,1890.4,0.8329]
[1741923021662,1.00998523,1890.6,1890.4,0.8329]
[1741923021860,5.28918,1890.7,1890.4,0.8329]
[1741923022138,5.2896,1890.5,1890.3,1.08329974]
[1741923022361,5.28933,1890.6,1890.3,1.08329974]
[1741923022563,5.28908,1890.7,1890.3,1.08329974]
[1741923022995,5.28908,1890.7,1890.3,6.37341974]
[1741923023191,3.0,1890.6,1890.3,1.08329974]
[1741923023473,3.0,1890.6,1890.3,6.37345974]
[1741923023771,3.40653833,1890.9,1890.5,0.7676]
[1741923023969,3.0,1890.7,1890.5,0.7676]
[1741923025068,8.28865,1890.9,1890.5,0.7676]
[1741923025252,3.0,1890.7,1890.5,0.7676]
[1741923026973,8.28909,1890.7,1890.5,0.7676]
[1741923027177,5.28932,1890.6,1890.3,1.91369974]
[1741923027341,9.646875,1890.7,1890.3,1.91369974]
[1741923027543,9.646875,1890.7,1890.3,7.20383974]
[1741923027743,14.936135,1890.7,1890.3,1.91369974]
[1741923028774,4.357785,1890.7,1890.3,1.91369974]
[1741923029077,5.28907,1890.7,1890.3,7.20381974]
[1741923029278,5.28954,1890.6,1890.3,1.91369974]
[1741923029642,5.28916,1890.7,1890.3,1.91369974]
[1741923029840,8.53492,1890.8,1890.3,1.91369974]
[1741923029841,5.28948,1890.6,1890.3,1.91369974]
[1741923030043,10.57894,1890.6,1890.3,1.91369974]
[1741923030258,5.28946,1890.6,1890.3,1.91369974]
[1741923030480,5.28946,1890.6,1890.3,1.08329974]
[1741923030481,5.28988,1890.4,1890.3,1.08329974]
[1741923030678,13.82503,1890.6,1890.3,1.08329974]
[1741923031172,13.82503,1890.6,1890.1,0.7799]
[1741923031173,5.2899,1890.4,1890.1,0.7799]
[1741923031372,5.29018,1890.3,1890.2,1.12499701]
[1741923031679,5.2899,1890.4,1890.2,1.12499701]
[1741923031847,8.53546,1890.6,1890.2,1.12499701]
[1741923032042,15.01041822,1890.6,1890.2,1.12499701]
[1741923032348,8.28944,1890.6,1890.3,0.8275]
[1741923032562,13.57889,1890.6,1890.3,0.8275]
[1741923032877,13.57893,1890.6,1890.4,0.05468203]
[1741923033078,5.2896,1890.5,1890.4,0.05468203]
[1741923033574,5.2896,1890.5,1890.2,1.07031498]
[1741923033757,5.2896,1890.5,1890.3,0.05468203]
[1741923035248,8.53544,1890.6,1890.3,0.05468203]
[1741923035449,13.825,1890.6,1890.3,0.05468203]
[1741923036254,5.28969,1890.5,1890.3,0.05468203]
[1741923036754,5.53544,1890.6,1890.3,0.05468203]
[1741923037190,6.617888,1890.6,1890.3,0.05468203]
[1741923037479,11.907468,1890.6,1890.3,0.05468203]
[1741923038750,5.53496,1890.8,1890.4,6.12017]
[1741923039079,12.89324856,1891.2,1890.4,6.12017]
[1741923039080,5.28767,1891.2,1890.7,0.8074]
[1741923039281,5.28764,1891.2,1890.7,0.8074]
[1741923039484,5.28764,1891.2,1890.3,10.8474]
[1741923039485,5.28927,1890.7,1890.3,10.8474]
[1741923039708,0.246,1890.8,1890.3,10.8474]
[1741923039709,5.53476,1890.8,1890.3,0.8074]
[1741923039854,5.28937,1890.6,1890.3,0.8074]
[1741923040284,5.28937,1890.6,1890.2,6.36075498]
[1741923040879,5.28937,1890.6,1890.2,1.07031498]
[1741923040880,5.28987,1890.5,1890.2,1.07031498]
[1741923041666,5.28974,1890.5,1890.2,1.07031498]
[1741923042590,8.2899,1890.4,1890.2,1.07031498]
[1741923042758,5.29022,1890.3,1890.1,0.8074]
[1741923043086,5.29022,1890.3,1890.1,1.8541811]
[1741923043957,5.2896,1890.5,1890.1,7.1447711]
[1741923044781,10.28082856,1890.6,1890.1,7.1447711]
[1741923045086,5.28973,1890.5,1890.1,7.1447711]
[1741923045393,7.28110856,1890.5,1890.1,1.8541811]
[1741923045590,3.0,1890.3,1890.1,1.8541811]
[1741923046586,8.29021,1890.3,1890.1,1.8541811]
[1741923048396,10.28181856,1890.2,1890.1,1.0467811]
[1741923048578,15.57252856,1890.2,1889.7,6.08398]
[1741923048892,3.0,1890.0,1889.7,0.7922]
[1741923049093,8.29111,1890.0,1889.8,1.08326835]
[1741923049388,10.52848856,1890.0,1889.5,6.08442]
[1741923049588,8.53711,1890.0,1889.5,6.692862]
[1741923049795,8.29111,1890.0,1889.6,6.36751401]
[1741923049992,8.29111,1890.0,1889.6,1.57165288]
[1741923050292,10.28248856,1890.0,1889.6,1.57165288]
[1741923050466,5.29144,1889.9,1889.6,1.57165288]
[1741923051292,5.29144,1889.9,1889.6,1.07551401]
[1741923051487,8.29111,1890.0,1889.6,6.36749401]
[1741923051694,8.29111,1890.0,1889.6,1.07551401]
[1741923052089,7.28279856,1889.9,1889.6,1.07551401]
[1741923052283,5.53742,1889.9,1889.6,1.07551401]
[1741923052485,5.29169,1889.8,1889.6,1.07551401]
[1741923052886,3.0,1889.8,1889.6,1.07551401]
[1741923053564,0.246,1889.9,1889.6,1.07551401]
[1741923053768,9.97233545,1890.0,1889.6,6.36761401]
[1741923054098,9.97233545,1890.0,1889.6,1.07551401]
[1741923054499,3.0,1889.8,1889.7,0.05013078]
[1741923054879,3.0,1889.8,1889.6,1.07551401]
[1741923055079,3.0,1889.8,1889.7,0.05106853]
[1741923055396,3.0,1889.8,1889.6,1.07551401]
[1741923055601,3.0,1889.8,1889.7,0.05106853]
[1741923055776,3.0,1889.8,1889.6,1.07551401]
[1741923056096,0.40705659,1890.0,1889.7,0.05106853]
[1741923056398,0.246,1890.1,1889.6,6.36757401]
[1741923056603,0.40645996,1890.1,1889.8,6.06805]
[1741923056765,10.82666,1890.3,1889.9,5.29128]
[1741923056971,3.0,1890.2,1889.9,5.34252135]
[1741923057170,3.0,1890.2,1889.9,0.05124135]
[1741923057371,1.358062,1890.2,1889.9,0.05124135]
[1741923057586,5.29083,1890.1,1889.9,0.05124135]
[1741923057998,5.291,1890.0,1889.9,0.05124135]
[1741923058506,5.291,1890.0,1889.7,1.0455727]
[1741923058714,5.291,1890.0,1889.9,0.0509451]
[1741923058995,10.8277,1890.1,1889.7,1.0455727]
[1741923059170,10.8277,1890.1,1889.9,0.0509451]
[1741923059370,13.8277,1890.1,1890.0,0.0509451]
[1741923059689,13.8277,1890.1,1889.7,1.0455727]
[1741923059891,13.8277,1890.1,1890.0,0.0509451]
[1741923060091,13.8277,1890.1,1889.7,1.0455727]
[1741923060291,8.29083,1890.1,1890.0,0.0509451]
[1741923060485,3.0,1890.1,1889.7,6.3372927]
[1741923060676,3.0,1890.1,1890.0,0.05109322]
[1741923060881,3.0,1890.1,1889.7,1.0455727]
[1741923061094,3.0,1890.1,1890.0,0.05109322]
[1741923061293,3.0,1890.1,1889.9,5.29106]
[1741923061574,3.0,1890.1,1890.0,0.05109322]
[1741923061797,3.0,1890.1,1889.8,6.04793]
[1741923061967,3.0,1890.1,1889.9,0.05109322]
[1741923063619,3.0,1890.1,1889.9,5.34225322]
[1741923063819,3.0,1890.1,1890.0,5.291]
[1741923064101,3.0,1890.1,1890.0,0.05090807]
[1741923066906,3.0,1890.1,1889.8,0.7564]
[1741923067079,3.0,1890.1,1890.0,0.05064889]
[1741923067287,9.648836,1890.1,1889.8,0.7564]
[1741923067496,9.648836,1890.1,1890.0,0.05064889]
[1741923067698,9.648836,1890.1,1889.8,0.7564]
[1741923068204,9.648836,1890.1,1889.9,0.05064889]
[1741923068708,5.291,1890.0,1889.9,0.05064889]
[1741923069302,5.291,1890.0,1889.7,1.0455727]
[1741923069481,8.291,1890.0,1889.9,0.05067358]
[1741923069686,8.291,1890.0,1889.7,1.0455727]
[1741923069887,8.291,1890.0,1889.9,0.05067358]
[1741923070088,8.291,1890.0,1889.7,1.0455727]
[1741923070307,8.291,1890.0,1889.9,0.05067358]
[1741923070510,8.291,1890.0,1889.7,1.0455727]
[1741923070683,8.291,1890.0,1889.9,0.05067358]
[1741923070877,8.291,1890.0,1889.7,1.0455727]
[1741923071077,5.29134,1889.9,1889.7,1.0455727]
[1741923071281,5.29156,1889.8,1889.7,1.0455727]
[1741923071475,6.34985,1889.8,1889.6,0.7697]
[1741923072186,5.29184,1889.7,1889.4,1.30785661]
[1741923072588,5.29184,1889.7,1889.5,1.07983959]
[1741923073387,5.29212,1889.6,1889.5,1.07983959]
[1741923073839,5.29212,1889.6,1889.2,0.7812]
[1741923074206,5.2927,1889.4,1889.2,1.27706817]
[1741923074721,5.29251,1889.5,1889.2,1.27706817]
[1741923075041,5.29251,1889.5,1889.2,1.43925082]
[1741923075199,10.58516,1889.5,1889.2,1.43925082]
[1741923075400,10.58516,1889.5,1889.3,1.06419214]
[1741923075705,3.0,1889.6,1889.3,1.06419214]
[1741923075904,8.2923,1889.6,1889.3,1.06419214]
[1741923077251,5.29259,1889.5,1889.3,1.06419214]
[1741923077422,6.146449,1889.5,1889.3,1.06419214]
[1741923077620,5.29268,1889.4,1889.3,1.06419214]
[1741923078324,5.53917,1889.3,1889.1,0.01]
[1741923078525,3.0,1889.2,1889.1,0.01]
[1741923078730,8.29324,1889.2,1889.1,0.01]
[1741923078926,3.0,1889.2,1889.1,0.01]
[1741923080793,8.29324,1889.2,1889.1,0.01]
[1741923081022,3.0,1889.2,1889.1,0.01]
[1741923081223,8.29324,1889.2,1889.1,0.01]
[1741923081937,9.34350606,1889.2,1889.1,0.0602644]
[1741923083240,8.29324,1889.2,1889.1,0.0602644]
[1741923084771,0.246,1889.7,1889.2,0.7624]
[1741923085029,5.29203,1889.7,1889.3,5.34391927]
[1741923085230,3.0,1889.6,1889.3,5.34391927]
[1741923085419,3.0,1889.6,1889.3,6.4838752]
[1741923086841,8.29215,1889.6,1889.3,1.1910352]
[1741923087341,3.0,1889.6,1889.3,6.53690044]
[1741923087514,5.29106,1890.0,1889.5,6.09044]
[1741923087715,3.0,1889.8,1889.5,0.7983]
[1741923087953,8.2916,1889.8,1889.6,0.05062238]
[1741923088421,3.0,1889.8,1889.6,0.05062238]
[1741923088932,8.29161,1889.8,1889.6,0.05062238]
[1741923089455,8.29158,1889.8,1889.6,0.05062238]
[1741923089831,3.0,1889.8,1889.6,0.05062238]
[1741923090548,5.29184,1889.7,1889.6,0.05062238]
[1741923090752,8.53781,1889.8,1889.6,0.05062238]
[1741923090954,8.53781,1889.8,1889.4,7.13565967]
[1741923091150,8.29181,1889.8,1889.7,0.05062238]
[1741923091363,3.0,1889.8,1889.4,8.37851064]
[1741923091649,8.29162,1889.8,1889.4,8.37851064]
[1741923091856,8.29162,1889.8,1889.5,0.05062238]
[1741923092552,3.0,1889.8,1889.5,0.05062238]
[1741923092719,3.0,1889.8,1889.5,1.42279268]
[1741923093449,3.0,1889.8,1889.5,0.05062238]
[1741923093651,5.29212,1889.6,1889.2,6.09914]
[1741923093839,8.29189,1889.7,1889.2,6.09914]
[1741923094152,5.29214,1889.6,1889.2,6.09914]
[1741923094368,5.29245,1889.5,1889.2,0.8059]
[1741923094728,5.29214,1889.6,1889.2,0.8059]
[1741923094959,5.29214,1889.6,1889.2,6.09913]
[1741923095255,5.29214,1889.6,1889.3,1.08616536]
[1741923096157,5.29252,1889.5,1889.3,1.08616536]
[1741923097279,5.29268,1889.4,1889.3,1.08616536]
[1741923099337,5.29315,1889.3,1889.1,0.01]
[1741923099855,5.29324,1889.2,1889.1,0.01]
[1741923100160,8.53924,1889.2,1889.1,0.01]
[1741923102060,8.29324,1889.2,1889.1,0.01]
[1741923102257,12.70641903,1889.2,1889.1,0.01]
[1741923103257,13.09698019,1889.2,1889.1,0.01]
[1741923103465,9.77546022,1889.2,1889.1,0.01]
[1741923109043,6.77546022,1889.2,1889.1,0.01]
[1741923115391,13.09698019,1889.2,1889.1,0.01]
[1741923116162,9.77546022,1889.2,1889.1,0.01]
[1741923120790,9.52946022,1889.2,1889.1,0.01]
[1741923121003,8.68380116,1889.2,1889.1,0.01]
[1741923124966,3.0,1889.2,1889.1,0.01]
[1741923125574,5.29316,1889.3,1889.1,0.01]
[1741923125767,5.29324,1889.2,1889.1,0.01]
[1741923125986,8.29324,1889.2,1889.1,0.01]
[1741923127101,3.0,1889.2,1889.1,0.01]
[1741923127690,3.0,1889.2,1889.1,0.784]
[1741923129272,8.29324,1889.2,1889.1,0.784]
[1741923135471,3.0,1889.2,1889.1,0.784]
[1741923137380,8.29324,1889.2,1889.1,0.01]
[1741923138309,9.65186,1889.2,1889.1,0.01]
[1741923138605,9.89786,1889.2,1889.1,0.01]
[1741923142700,15.92786,1889.2,1889.1,0.01]
[1741923148096,15.68186,1889.2,1889.1,0.01]
[1741923148301,14.32324,1889.2,1889.1,0.01]
[1741923148501,8.29324,1889.2,1889.1,0.01]
[1741923154331,3.0,1889.2,1889.1,0.01]
[1741923154500,8.29324,1889.2,1889.1,0.01]
[1741923160935,8.53924,1889.2,1889.1,0.01]
[1741923163345,14.56924,1889.2,1889.1,0.01]
[1741923165537,19.63424,1889.2,1889.1,0.01]
[1741923166239,5.29436,1888.8,1888.7,0.832]
[1741923166430,8.29492,1888.6,1888.5,0.8099]
[1741923166629,3.0,1888.6,1888.5,0.8099]
[1741923168137,5.294,1889.0,1888.5,0.8099]
[1741923168325,3.0,1888.8,1888.6,0.7506]
[1741923168530,3.0,1888.8,1888.6,1.157812]
[1741923168908,16.38825,1889.2,1888.7,0.7506]
[1741923168909,5.29384,1889.0,1888.7,0.7506]
[1741923169110,3.0,1888.9,1888.7,0.7506]
[1741923169538,8.29412,1888.9,1888.7,0.7506]
[1741923169946,3.0,1888.9,1888.7,0.7506]
[1741923170914,8.29414,1888.9,1888.7,0.7506]
[1741923173243,3.0,1888.9,1888.7,0.7506]
[1741923173546,3.0,1888.9,1888.7,1.06583062]
[1741923174243,3.0,1888.9,1888.8,0.7506]
[1741923174434,5.29384,1889.0,1888.8,0.7506]
[1741923174435,0.39190185,1889.0,1888.8,0.7506]
[1741923174748,3.0,1889.0,1888.9,0.7506]
[1741923175244,8.2938,1889.0,1888.9,0.7506]
[1741923175413,3.0,1888.9,1888.8,2.74509421]
[1741923175618,3.0,1888.9,1888.8,0.7506]
[1741923175838,3.0,1888.9,1888.8,1.1296272]
[1741923177815,3.0,1888.9,1888.8,0.7506]
[1741923185347,0.40364617,1889.2,1889.0,5.2938]
[1741923185518,5.29323,1889.3,1888.9,1.99449421]
[1741923185852,8.29436,1888.8,1888.5,0.822]
[1741923186054,10.58961,1888.7,1888.5,0.822]
[1741923186446,5.29476,1888.7,1888.5,0.822]
[1741923186641,10.58952,1888.7,1888.5,0.822]
[1741923186844,3.0,1888.8,1888.4,1.04341918]
[1741923187043,3.0,1888.6,1888.4,1.04341918]
[1741923187428,3.0,1888.6,1888.3,2.78909421]
[1741923188441,8.29494,1888.6,1888.3,2.78909421]
[1741923190062,3.0,1888.6,1888.4,1.99449421]
[1741923190260,3.0,1888.8,1888.5,0.7834]
[1741923190560,5.29376,1889.1,1888.6,1.99449421]
[1741923190759,5.29376,1889.1,1888.8,0.7834]
[1741923190966,5.29252,1889.5,1889.0,7.28810421]
[1741923191263,5.29311,1889.3,1889.1,0.7663]
[1741923192658,5.29327,1889.2,1888.9,5.8168]
[1741923192827,6.122597,1889.2,1889.0,1.07643071]
[1741923193029,6.122597,1889.2,1888.9,0.7528]
[1741923193231,5.2938,1889.0,1888.7,0.8258]
[1741923193427,5.29423,1888.9,1888.7,0.8258]
[1741923193633,5.2938,1889.0,1888.7,1.87066165]
[1741923193849,10.58776,1889.0,1888.7,1.87066165]
[1741923194263,10.58776,1889.0,1888.7,0.8258]
[1741923194431,10.58775,1889.0,1888.7,0.8258]
[1741923194635,5.2938,1889.0,1888.7,0.8258]
[1741923194834,8.29365,1889.1,1888.7,6.88878543]
[1741923195033,8.29365,1889.1,1888.7,1.54142121]
[1741923195253,8.29365,1889.1,1888.7,0.8258]
[1741923195443,5.29401,1889.0,1888.7,0.8258]
[1741923196554,5.29401,1889.0,1888.7,0.878741]
[1741923197139,5.29401,1889.0,1888.7,0.8258]
[1741923197833,5.29383,1889.0,1888.7,0.87874095]
[1741923198446,8.29365,1889.1,1888.7,6.17335095]
[1741923198667,13.5873,1889.1,1888.7,0.87874095]
[1741923198869,8.29365,1889.1,1888.7,6.17335095]
[1741923199567,5.29382,1889.0,1888.7,0.87874095]
[1741923199774,5.29382,1889.0,1888.7,0.8258]
[1741923200069,5.29382,1889.0,1888.7,0.87874099]
[1741923200488,3.0,1889.1,1888.7,1.5996463]
[1741923200770,3.0,1889.1,1888.8,6.08039]
[1741923201561,3.0,1889.1,1888.8,6.13332625]
[1741923201762,3.0,1889.1,1888.8,11.42751625]
[1741923201961,0.40364347,1889.2,1888.9,5.29406]
[1741923202151,8.29302,1889.3,1888.9,5.29406]
[1741923202355,8.29302,1889.3,1888.8,6.08029]
[1741923202650,8.29302,1889.3,1888.8,6.688319]
[1741923202851,3.0,1889.1,1888.8,6.688319]
[1741923203051,3.0,1889.1,1889.0,1.08687576]
[1741923204174,3.0,1889.3,1889.1,0.8255]
[1741923204543,8.29296,1889.3,1889.1,0.8255]
[1741923205176,3.0,1889.3,1889.1,0.8255]
[1741923206048,3.0,1889.3,1889.1,1.54610358]
[1741923207241,0.39279477,1889.7,1889.1,1.54610358]
[1741923207449,5.5378,1889.8,1889.4,0.7846]
[1741923207746,3.0,1889.7,1889.4,0.7846]
[1741923207956,8.29189,1889.7,1889.4,0.7846]
[1741923208177,5.29189,1889.7,1889.4,0.7846]
[1741923208390,5.68308461,1889.8,1889.4,6.07725]
[1741923208576,5.2919,1889.7,1889.4,0.7846]
[1741923209079,3.0,1889.6,1889.4,0.7846]
[1741923209772,3.0,1889.6,1889.5,1.06380381]
[1741923211773,3.0,1889.8,1889.5,1.06380381]
[1741923211981,0.246,1890.1,1889.5,1.06380381]
[1741923212152,10.58162,1890.1,1889.6,6.12939651]
[1741923212352,3.0,1890.0,1889.6,11.13848]
[1741923212761,3.0,1890.0,1889.7,5.29179]
[1741923212960,3.0,1890.0,1889.6,11.13848]
[1741923213160,10.5816,1890.1,1889.6,11.13848]
[1741923213361,3.0,1890.0,1889.7,1.113848]
[1741923213561,5.29072,1890.1,1889.7,6.4585701]
[1741923213761,3.0,1890.0,1889.7,6.4585701]
[1741923214163,3.0,1890.0,1889.8,0.7846]
[1741923214364,8.29047,1890.2,1889.8,0.7846]
[1741923214583,3.0,1890.2,1889.8,6.80047501]
[1741923215277,3.0,1890.2,1889.8,12.09190501]
[1741923215458,3.0,1890.2,1889.8,6.80034501]
[1741923215857,8.29046,1890.2,1889.8,6.80034501]
[1741923216286,5.29102,1890.0,1889.8,1.50891501]
[1741923216451,3.0,1890.0,1889.8,0.7846]
[1741923220690,8.29104,1890.0,1889.8,0.7846]
[1741923221186,3.0,1890.0,1889.8,0.7846]
[1741923221862,8.291,1890.0,1889.8,0.7846]
[1741923222184,5.2914,1889.9,1889.6,0.7572]
[1741923222356,5.2914,1889.9,1889.7,5.061]
[1741923222553,5.2914,1889.9,1889.6,5.8182]
[1741923223058,5.2914,1889.9,1889.8,1.04831565]
[1741923223984,13.58226,1890.0,1889.8,1.04831565]
[1741923224190,8.29128,1889.9,1889.8,1.04831565]
[1741923224364,5.29211,1889.7,1889.4,0.8317]
[1741923224564,5.2924,1889.5,1889.2,0.8317]
[1741923225297,5.29276,1889.4,1889.2,0.8317]
[1741923225489,5.29276,1889.4,1889.3,1.07939807]
[1741923225993,0.54589906,1889.4,1889.0,0.7526]
[1741923226165,5.29337,1889.2,1888.8,0.7825]
[1741923226362,0.246,1889.3,1888.8,0.7825]
[1741923226558,5.2929,1889.4,1889.0,5.29369]
[1741923226764,10.5858,1889.4,1889.1,0.7825]
[1741923227058,5.2929,1889.4,1889.1,0.7825]
[1741923227289,10.58571,1889.4,1889.1,0.7825]
[1741923227490,5.29281,1889.4,1889.1,0.7825]
[1741923227690,5.29307,1889.3,1889.1,0.7825]
[1741923228305,5.29307,1889.3,1889.0,0.8284]
[1741923229370,5.29307,1889.3,1889.0,1.44591534]
[1741923229571,5.29281,1889.4,1889.0,1.44591534]
[1741923230014,0.246,1889.5,1889.1,0.05293178]
[1741923230199,8.29258,1889.5,1889.0,6.12207]
[1741923231092,3.0,1889.5,1889.2,0.8284]
[1741923231281,3.0,1889.5,1889.2,1.440588]
[1741923232869,8.29252,1889.5,1889.1,6.11798]
[1741923233813,13.58517,1889.5,1889.1,6.11798]
[1741923234111,5.29272,1889.4,1889.1,0.8245]
[1741923236000,8.29252,1889.5,1889.1,0.8245]
[1741923236402,3.0,1889.5,1889.2,0.05292701]
[1741923236600,3.0,1889.5,1889.2,0.67001071]
[1741923237193,3.0,1889.5,1889.2,0.67001065]
[1741923237783,8.29242,1889.5,1889.2,0.67001065]
[1741923238704,3.0,1889.5,1889.2,5.96322065]
[1741923238904,3.0,1889.5,1889.2,0.67001065]
[1741923239302,8.29253,1889.5,1889.3,1.08242061]
[1741923239671,5.29275,1889.4,1888.9,6.11833]
[1741923240004,5.29275,1889.4,1888.9,11.41229]
[1741923240203,5.29275,1889.4,1889.0,5.29369]
[1741923240405,5.29275,1889.4,1889.2,1.03858889]
[1741923245213,0.63645302,1889.6,1888.9,0.8245]
[1741923245511,5.29313,1889.3,1889.0,5.061]
[1741923245676,5.29313,1889.3,1888.9,0.8245]
[1741923245873,5.29354,1889.1,1888.9,5.061]
[1741923246312,5.53944,1889.2,1888.9,5.061]
[1741923246806,3.0,1889.4,1889.1,0.8245]
[1741923247106,8.29269,1889.4,1889.1,1.54341671]
[1741923248412,3.0,1889.4,1889.1,6.83689671]
[1741923248608,3.0,1889.4,1889.1,6.83679671]
[1741923248814,3.0,1889.4,1889.1,12.13020671]
[1741923248991,3.0,1889.4,1889.1,6.83679671]
[1741923249190,3.0,1889.4,1889.1,12.13020671]
[1741923249385,3.0,1889.4,1889.2,1.26594768]
[1741923249586,3.0,1889.4,1889.2,1.21302067]
[1741923250220,3.0,1889.4,1889.2,1.26594776]
[1741923250718,0.39045302,1889.6,1889.2,1.26594776]
[1741923250905,3.0,1889.5,1889.2,5.34598709]
[1741923252418,3.0,1889.5,1889.2,0.05292709]
[1741923253519,3.0,1889.5,1889.1,11.41118]
[1741923253819,3.0,1889.5,1889.2,0.05292711]
[1741923253986,3.0,1889.5,1889.1,6.1178]
[1741923254189,3.0,1889.5,1889.2,0.66470712]
[1741923254517,3.0,1889.5,1889.2,0.61178]
[1741923254689,8.29242,1889.5,1889.2,0.66470712]
[1741923255408,8.29242,1889.5,1889.2,0.61178]
[1741923256219,8.29242,1889.5,1889.3,1.04164565]
[1741923256519,5.29335,1889.2,1888.9,5.8864]
[1741923256723,5.29335,1889.2,1888.9,5.93933528]
[1741923257029,5.29335,1889.2,1888.9,5.8864]
[1741923257690,5.29335,1889.2,1889.1,1.07379914]
[1741923257891,6.37659,1889.2,1888.9,5.8864]
[1741923258331,5.29335,1889.2,1888.9,5.8864]
[1741923258790,10.58682,1889.2,1888.9,5.8864]
[1741923258987,5.29335,1889.2,1888.9,5.8864]
[1741923259220,5.29358,1889.1,1888.9,1.06446084]
[1741923259426,5.29394,1889.0,1888.6,10.40869173]
[1741923259721,5.29358,1889.1,1888.8,0.8254]
[1741923260224,5.29331,1889.2,1888.8,0.87834141]
[1741923260439,5.29331,1889.2,1888.8,6.11959]
[1741923260926,10.58679,1889.2,1888.8,0.8254]
[1741923261123,5.29331,1889.2,1888.8,0.8254]
[1741923261336,5.29366,1889.1,1888.8,0.8254]
[1741923261507,5.29366,1889.1,1888.7,6.33525917]
[1741923261508,5.29387,1889.0,1888.6,11.16131]
[1741923262339,5.29366,1889.1,1888.6,16.45598]
[1741923262507,5.29366,1889.1,1888.7,5.29458]
[1741923262709,10.58735,1889.1,1888.7,5.29458]
[1741923263135,5.29366,1889.1,1888.7,5.29458]
[1741923263435,5.29366,1889.1,1888.6,16.45586]
[1741923263628,5.29366,1889.1,1888.7,6.940216]
[1741923263948,5.29366,1889.1,1888.7,6.99315724]
[1741923264963,8.2933,1889.2,1888.7,12.28758724]
[1741923265236,3.0,1889.2,1888.9,6.0994]
[1741923266148,13.58565,1889.4,1888.9,6.0994]
[1741923266307,5.29299,1889.3,1888.9,6.0994]
[1741923270328,8.29272,1889.4,1888.9,6.0994]
[1741923270645,3.0,1889.2,1888.9,6.0994]
[1741923272050,2.998,1889.2,1888.9,6.0994]
[1741923275858,2.998,1889.2,1889.1,1.04446566]
[1741923276521,3.0,1889.2,1889.1,1.04446566]
[1741923277732,8.29274,1889.4,1889.1,1.04446566]
[1741923278051,3.0,1889.5,1889.2,6.06744]
[1741923278242,3.0,1889.5,1889.2,7.30795557]
[1741923278447,3.0,1889.6,1889.2,12.60088557]
[1741923278625,3.0,1889.6,1889.3,5.29284]
[1741923279528,5.69699584,1889.8,1889.4,0.7742]
[1741923279726,5.69699584,1889.8,1889.4,6.0667]
[1741923279925,3.0,1889.7,1889.4,7.202649]
[1741923280256,3.0,1889.7,1889.4,8.26621232]
[1741923282362,23.786,1890.1,1889.4,3.02663443]
[1741923282524,23.786,1890.1,1889.6,5.29203]
[1741923282525,5.29108,1890.0,1889.6,5.29203]
[1741923282728,5.29108,1890.0,1889.6,0.7742]
[1741923282960,3.0,1889.9,1889.6,0.7742]
[1741923283151,8.29128,1889.9,1889.6,0.7742]
[1741923283347,3.0,1889.9,1889.6,6.672979]
[1741923283532,3.0,1889.9,1889.6,6.72589492]
[1741923284143,3.0,1889.9,1889.6,6.672979]
[1741923284829,3.0,1889.9,1889.6,6.72589492]
[1741923285230,3.0,1889.9,1889.7,1.04849361]
[1741923287669,3.0,1889.9,1889.7,1.82592945]
[1741923289172,3.0,1889.9,1889.6,6.672949]
[1741923289337,8.29133,1889.9,1889.6,0.7742]
[1741923289537,5.53768,1889.8,1889.4,10.35266]
[1741923289749,0.246,1889.8,1889.4,10.35246]
[1741923290077,0.246,1889.8,1889.5,5.2924]
[1741923290375,0.246,1889.8,1889.4,10.35246]
[1741923290573,0.246,1889.8,1889.4,11.994401]
[1741923290934,0.246,1889.8,1889.4,17.286871]
[1741923291268,0.246,1889.8,1889.4,11.994401]
[1741923291569,5.29156,1889.8,1889.6,1.05740613]
[1741923291768,5.29133,1889.9,1889.6,1.05740613]
[1741923294273,5.29159,1889.8,1889.6,1.05740613]
[1741923294437,5.29159,1889.8,1889.4,5.29246]
[1741923294780,5.53759,1889.8,1889.4,7.46827073]
[1741923299182,10.82942,1889.8,1889.4,2.17581073]
[1741923299385,5.53759,1889.8,1889.4,2.17581073]
[1741923300181,5.53759,1889.8,1889.4,7.46843073]
[1741923300546,0.246,1889.8,1889.4,12.76091073]
[1741923300773,5.29128,1889.9,1889.5,6.56848107]
[1741923300977,5.29128,1889.9,1889.5,7.35628107]
[1741923301386,5.68377643,1890.1,1889.7,0.7878]
[1741923301603,3.0,1890.0,1889.7,0.7878]
[1741923301754,0.246,1890.2,1889.9,5.29103]
[1741923302062,0.246,1890.4,1890.0,6.07854]
[1741923302273,5.53603,1890.4,1890.0,6.07854]
[1741923302578,5.93681947,1890.4,1890.0,6.07854]
[1741923303080,3.0,1890.3,1890.0,6.07854]
[1741923303382,5.53603,1890.4,1890.0,6.07854]
[1741923303571,5.53603,1890.4,1890.1,0.607854]
[1741923303891,5.53603,1890.4,1890.0,6.07854]
[1741923305473,5.29025,1890.3,1890.0,0.7878]
[1741923306675,10.82607,1890.4,1890.0,0.7878]